fUSD/lending_fUSD_20260226
["ID","MTS","AMOUNT","RATE_DAILY","PERIOD"]
[406743355,1772137840476,-400.0,9.9e-05,3]
[406743356,1772137840485,-250.0,9.903e-05,2]
[406743357,1772137840495,-368.783,9.998e-05,2]
[406743358,1772137840505,-1000.0,9.999e-05,2]
[406743359,1772137840515,-553.9512,9.999e-05,2]
[406743360,1772137840525,-694.94041656,0.0001,2]
[406743361,1772137840534,-600.0,0.0001,3]
[406743362,1772137840543,-151.0,0.0001,2]
[406743363,1772137840553,-151.0,0.0001,2]
[406743364,1772137840563,-151.0,0.0001,2]
[406743365,1772137840574,-151.0,0.0001,2]
[406743366,1772137840583,-151.0,0.0001,2]
[406743367,1772137840593,-151.0,0.0001,2]
[406743368,1772137840603,-151.0,0.0001,2]
[406743369,1772137840613,-151.0,0.0001,2]
[406743370,1772137840622,-151.0,0.0001,2]
[406743371,1772137840631,-151.0,0.0001,2]
[406743372,1772137840640,-151.0,0.0001,2]
[406743373,1772137840649,-500.0,0.0001,2]
[406743374,1772137840659,-500.0,0.0001,2]
[406743375,1772137840669,-500.0,0.0001,2]
[406743376,1772137840678,-500.0,0.0001,2]
[406743378,1772137840687,-151.0,0.0001,2]
[406743379,1772137840701,-500.0,0.0001,2]
[406743380,1772137840710,-500.0,0.0001,2]
[406743381,1772137840719,-151.0,0.0001,2]
[406743382,1772137840728,-151.0,0.0001,2]
[406743383,1772137840739,-502.62170178,0.0001,2]
[406743384,1772137840749,-151.0,0.0001,2]
[406743385,1772137840758,-151.0,0.0001,2]
[406743386,1772137840768,-151.0,0.0001,2]
[406743387,1772137840777,-151.0,0.0001,2]
[406743388,1772137840786,-151.0,0.0001,2]
[406743389,1772137840795,-151.0,0.0001,2]
[406743390,1772137840804,-151.0,0.0001,2]
[406743391,1772137840814,-151.0,0.0001,2]
[406743392,1772137841070,-151.0,0.0001,2]
[406743393,1772137841080,-151.0,0.0001,2]
[406743394,1772137841089,-151.0,0.0001,2]
[406743395,1772137841099,-151.0,0.0001,2]
[406743396,1772137841108,-151.0,0.0001,2]
[406743397,1772137841118,-296.91076628,0.0001,2]
[406743398,1772137841127,-151.0,0.0001,2]
[406743399,1772137841137,-151.0,0.0001,2]
[406743400,1772137841146,-151.0,0.0001,2]
[406743401,1772137841155,-151.0,0.0001,2]
[406743402,1772137841164,-151.0,0.0001,2]
[406743403,1772137841174,-151.0,0.0001,2]
[406743404,1772137841183,-151.0,0.0001,2]
[406743405,1772137841192,-151.0,0.0001,2]
[406743406,1772137841202,-151.0,0.0001,2]
[406743407,1772137841211,-151.0,0.0001,2]
[406743408,1772137841222,-151.0,0.0001,2]
[406743409,1772137841231,-151.0,0.0001,2]
[406743410,1772137841240,-151.0,0.0001,2]
[406743411,1772137841251,-151.0,0.0001,2]
[406743412,1772137841261,-151.0,0.0001,2]
[406743413,1772137841270,-151.0,0.0001,2]
[406743414,1772137841279,-410.87669946,0.0001,2]
[406743415,1772137841288,-200.0,0.0001,2]
[406743416,1772137841298,-352.46850117,0.0001,2]
[406743417,1772137841308,-1000.0,0.00010054,2]
[406743418,1772137841318,-191.02,0.00010093,2]
[406743419,1772137841327,-150.0,0.00010098,2]
[406743420,1772137841337,-469.0060013,0.00010332,2]
[406743421,1772137841346,-9036.37977933,0.00010332,2]
[406743422,1772137841358,-1067.42379196,0.00010332,2]
[406743429,1772137844591,-13777.39257882,0.00010332,2]
[406743549,1772139031891,-222.0,8.704e-05,2]
[406743550,1772139031903,-239.69778834,8.704e-05,2]
[406743551,1772139031915,-1521.73,9.071e-05,2]
[406743552,1772139031927,-195.0,9.174e-05,2]
[406743553,1772139031939,-168.54,9.186e-05,2]
[406743554,1772139031952,-195.0,9.375e-05,2]
[406743555,1772139031967,-195.0,9.375e-05,2]
[406743556,1772139031979,-195.0,9.375e-05,2]
[406743557,1772139031992,-193.99,9.421e-05,2]
[406743558,1772139032003,-368.783,9.505e-05,2]
[406743559,1772139032016,-250.0,9.574e-05,2]
[406743560,1772139032032,-250.0,9.574e-05,2]
[406743561,1772139032043,-150.0,9.598e-05,2]
[406743562,1772139032056,-518.50348474,9.598e-05,2]
[406743563,1772139032067,-553.9512,9.599e-05,2]
[406743564,1772139032081,-24143.84655375,9.599e-05,2]
[406743565,1772139032104,-13406.4849571,9.599e-05,2]
[406743566,1772139032131,-4383.77488554,9.599e-05,2]
[406743569,1772139037911,-16812.5,9.599e-05,2]
[406743587,1772139040480,-259.820807,9.5e-05,2]
[406743588,1772139040490,-1941253.39360361,9.599e-05,2]
[406743595,1772139040823,-2500.0,9.599e-05,2]
[406743596,1772139040846,-200.0,9.7e-05,3]
[406743597,1772139040859,-1847.4,9.749e-05,2]
[406743598,1772139040869,-286058.7519431,9.799e-05,2]
[406743603,1772139043565,-85950.81174669,9.799e-05,2]
[406743604,1772139043577,-188705.25038785,9.799e-05,2]
[406743639,1772139046016,-72250.51813567,9.799e-05,2]
[406743640,1772139046034,-1052.41397663,9.799e-05,2]
[406743645,1772139643267,386.46560429,4.764e-05,2]
[406743646,1772139643290,632.38439571,4.764e-05,2]
[406743647,1772139643471,1018.85,4.969e-05,2]
[406743648,1772139643670,1018.85,5.174e-05,2]
[406743649,1772139643904,1018.85,5.38e-05,2]
[406743650,1772139644144,1018.85,5.585e-05,2]
[406743651,1772139644333,1018.85,5.79e-05,2]
[406743652,1772139644563,1018.85,5.995e-05,2]
[406743653,1772139644836,1018.85,6.2e-05,2]
[406743654,1772139645110,1018.85,6.405e-05,2]
[406743655,1772140013240,150.0,0.00011233,120]
[406743656,1772140035488,300.0,8.7e-05,3]
[406743657,1772140037598,700.0,8.8e-05,3]
[406743658,1772140039730,1100.0,8.9e-05,3]
[406743659,1772140042227,1500.0,9e-05,3]
[406743660,1772140066366,153.46,5.938e-05,2]
[406743669,1772140231972,-160.15,6.6e-05,2]
[406743671,1772140231983,-515.09,6.61e-05,2]
[406743673,1772140231994,-503.76,6.61e-05,2]
[406743675,1772140232004,-323.32473548,6.816e-05,2]
[406743676,1772140232015,-695.52526452,6.816e-05,2]
[406743677,1772140232024,-1018.85,7.021e-05,2]
[406743678,1772140232034,-1018.85,7.226e-05,2]
[406743679,1772140232043,-250.0,7.26e-05,2]
[406743680,1772140232053,-250.0,7.26e-05,2]
[406743681,1772140232065,-250.0,7.26e-05,2]
[406743682,1772140232074,-300.0,7.272e-05,2]
[406743683,1772140232084,-1018.85,7.431e-05,2]
[406743684,1772140232094,-361.0,7.532e-05,2]
[406743685,1772140232103,-404.0,7.553e-05,2]
[406743686,1772140232113,-1200.0,7.559e-05,2]
[406743687,1772140232122,-1613.0,7.56e-05,2]
[406743688,1772140232132,-1018.85,7.636e-05,2]
[406743689,1772140232141,-215.0,7.645e-05,2]
[406743690,1772140232151,-1225.25,7.659e-05,2]
[406743691,1772140232161,-304.0,7.661e-05,2]
[406743692,1772140232171,-15450.78937404,7.671e-05,2]
[406743693,1772140232187,-706.82415317,7.671e-05,2]
[406743694,1772140232199,-13896.34647279,7.671e-05,2]
[406743695,1772140232209,-314.0,7.676e-05,2]
[406743696,1772140232218,-932.0,7.745e-05,2]
[406743697,1772140232228,-1889.0,7.761e-05,2]
[406743698,1772140232238,-725.0,7.776e-05,2]
[406743699,1772140232247,-946.44474214,7.84e-05,2]
[406743701,1772140232257,-1018.85,7.841e-05,2]
[406743702,1772140232267,-279.0,8.007e-05,2]
[406743703,1772140232276,-1018.85,8.047e-05,2]
[406743704,1772140232287,-629.0,8.05e-05,2]
[406743705,1772140232296,-286.0,8.05e-05,2]
[406743706,1772140232306,-157.0,8.066e-05,2]
[406743708,1772140232315,-150.0,8.066e-05,2]
[406743710,1772140232325,-7668.933247,8.178e-05,2]
[406743712,1772140232334,-493.0,8.178e-05,2]
[406743715,1772140232343,-183.0,8.195e-05,2]
[406743717,1772140232353,-172.0,8.211e-05,2]
[406743718,1772140232362,-579.297273,8.219e-05,2]
[406743720,1772140232372,-222.0,8.227e-05,2]
[406743722,1772140232384,-1018.85,8.252e-05,2]
[406743724,1772140232395,-1680.0,8.315e-05,2]
[406743726,1772140232406,-250.0,8.326e-05,2]
[406743728,1772140232416,-1854.0,8.359e-05,2]
[406743730,1772140232427,-1336.0,8.375e-05,2]
[406743732,1772140232436,-592.0,8.392e-05,2]
[406743733,1772140232446,-918.0,8.417e-05,2]
[406743734,1772140232455,-481.0,8.434e-05,2]
[406743735,1772140232465,-1018.85,8.457e-05,2]
[406743736,1772140232476,-1018.85,8.662e-05,2]
[406743737,1772140232486,-1500.0,8.74e-05,2]
[406743738,1772140232495,-299.99,8.864e-05,2]
[406743739,1772140232505,-9386.31,8.864e-05,2]
[406743740,1772140232514,-9999.99,8.864e-05,2]
[406743741,1772140232523,-5312.87,8.864e-05,2]
[406743742,1772140232532,-284.31784251,8.864e-05,2]
[406743743,1772140232546,-715.67215749,8.864e-05,2]
[406743744,1772140232556,-150.99,8.864e-05,2]
[406743745,1772140232565,-150.99,8.864e-05,2]
[406743746,1772140232574,-292.03548617,8.864e-05,2]
[406743747,1772140232586,-5952.13234808,8.864e-05,2]
[406743748,1772140232598,-864.06206667,8.864e-05,2]
[406743749,1772140232609,-424.84285358,8.864e-05,2]
[406743750,1772140232620,-267.37735194,8.864e-05,2]
[406743751,1772140232630,-482.13,8.864e-05,2]
[406743752,1772140232649,-309.8314,8.864e-05,2]
[406743753,1772140232660,-343.29292514,8.864e-05,2]
[406743754,1772140232672,-326.03172292,8.864e-05,2]
[406743755,1772140232684,-700.36150344,8.864e-05,2]
[406743756,1772140232695,-37.89234206,8.864e-05,2]
[406743757,1772140232704,-818.63096611,8.864e-05,2]
[406743760,1772140238062,-471.87366345,8.864e-05,2]
[406743761,1772140238074,-8709.48537044,8.864e-05,2]
[406743762,1772140238084,-9999.99,8.864e-05,2]
[406743763,1772140238094,-9999.99,8.864e-05,2]
[406743764,1772140238104,-500.0,8.864e-05,2]
[406743765,1772140238114,-255.0,8.873e-05,2]
[406743766,1772140238123,-153.46,8.907e-05,2]
[406743767,1772140238132,-724.121591,8.938e-05,2]
[406743768,1772140238142,-13419.7,8.986e-05,2]
[406743769,1772140238152,-330.47,8.996e-05,2]
[406743770,1772140238161,-1852.42,9.003e-05,2]
[406743771,1772140238173,-500.0,9.066e-05,2]
[406743772,1772140238183,-500.0,9.138e-05,2]
[406743773,1772140238192,-2302.0,9.146e-05,2]
[406743774,1772140238202,-44802.0422,9.204e-05,2]
[406743775,1772140238212,-2500.0,9.204e-05,2]
[406743776,1772140238222,-5652.0,9.304e-05,2]
[406743777,1772140238231,-32883.6844,9.399e-05,2]
[406743778,1772140238241,-2898.6438,9.399e-05,2]
[406743779,1772140238251,-410.87669946,9.412e-05,2]
[406743780,1772140238261,-500.0,9.498e-05,2]
[406743781,1772140238271,-568.35786962,9.498e-05,2]
[406743782,1772140238280,-568.35786962,9.498e-05,2]
[406743783,1772140238290,-500.0,9.498e-05,2]
[406743784,1772140238299,-568.35786962,9.498e-05,2]
[406743785,1772140238308,-500.0,9.498e-05,2]
[406743786,1772140238317,-568.35786962,9.498e-05,2]
[406743787,1772140238327,-568.35786962,9.498e-05,2]
[406743788,1772140238336,-233.95971939,9.498e-05,2]
[406743789,1772140238345,-568.35786962,9.498e-05,2]
[406743790,1772140238355,-568.35786962,9.498e-05,2]
[406743791,1772140238364,-568.35786962,9.498e-05,2]
[406743792,1772140238377,-568.35786962,9.498e-05,2]
[406743793,1772140238391,-568.35786962,9.498e-05,2]
[406743794,1772140238401,-568.35786962,9.498e-05,2]
[406743795,1772140238410,-568.35786962,9.498e-05,2]
[406743796,1772140238423,-568.35786962,9.498e-05,2]
[406743797,1772140238432,-568.35786962,9.498e-05,2]
[406743798,1772140238442,-568.35786962,9.498e-05,2]
[406743800,1772140238452,-568.35786962,9.498e-05,2]
[406743802,1772140238463,-568.35786962,9.498e-05,2]
[406743804,1772140238472,-568.35786962,9.498e-05,2]
[406743806,1772140238482,-568.35786962,9.498e-05,2]
[406743808,1772140238491,-568.35786962,9.498e-05,2]
[406743810,1772140238501,-568.35786962,9.498e-05,2]
[406743812,1772140238511,-568.35786962,9.498e-05,2]
[406743814,1772140238520,-568.35786962,9.498e-05,2]
[406743816,1772140238530,-568.35786962,9.498e-05,2]
[406743818,1772140238539,-568.35786962,9.498e-05,2]
[406743820,1772140238548,-568.35786962,9.498e-05,2]
[406743822,1772140238558,-568.35786962,9.498e-05,2]
[406743824,1772140238570,-568.35786962,9.498e-05,2]
[406743826,1772140238580,-568.35786962,9.498e-05,2]
[406743828,1772140238589,-568.35786962,9.498e-05,2]
[406743830,1772140238598,-568.35786962,9.498e-05,2]
[406743832,1772140238608,-568.35786962,9.498e-05,2]
[406743834,1772140238617,-568.35786962,9.498e-05,2]
[406743836,1772140238627,-568.35786962,9.498e-05,2]
[406743839,1772140238637,-568.35786962,9.498e-05,2]
[406743841,1772140238646,-568.35786962,9.498e-05,2]
[406743843,1772140238656,-568.35786962,9.498e-05,2]
[406743844,1772140238667,-568.35786962,9.498e-05,2]
[406743847,1772140238678,-568.35786962,9.498e-05,2]
[406743849,1772140238688,-568.35786962,9.498e-05,2]
[406743851,1772140238698,-568.35786962,9.498e-05,2]
[406743853,1772140238708,-568.35786962,9.498e-05,2]
[406743855,1772140238718,-568.35786962,9.498e-05,2]
[406743857,1772140238728,-568.35786962,9.498e-05,2]
[406743859,1772140238738,-568.35786962,9.498e-05,2]
[406743861,1772140238749,-568.35786962,9.498e-05,2]
[406743863,1772140238759,-568.35786962,9.498e-05,2]
[406743865,1772140238772,-568.35786962,9.498e-05,2]
[406743868,1772140238782,-568.35786962,9.498e-05,2]
[406743869,1772140238791,-568.35786962,9.498e-05,2]
[406743872,1772140238801,-568.35786962,9.498e-05,2]
[406743874,1772140238811,-568.35786962,9.498e-05,2]
[406743876,1772140238820,-568.35786962,9.498e-05,2]
[406743878,1772140238831,-568.35786962,9.498e-05,2]
[406743880,1772140238840,-568.35786962,9.498e-05,2]
[406743882,1772140238850,-568.35786962,9.498e-05,2]
[406743884,1772140238859,-568.35786962,9.498e-05,2]
[406743886,1772140238869,-587.630325,9.498e-05,2]
[406743888,1772140238879,-587.630325,9.498e-05,2]
[406743890,1772140238888,-587.630325,9.498e-05,2]
[406743892,1772140238898,-587.630325,9.498e-05,2]
[406743894,1772140238907,-587.630325,9.498e-05,2]
[406743896,1772140238916,-587.630325,9.498e-05,2]
[406743898,1772140238926,-587.630325,9.498e-05,2]
[406743900,1772140238937,-587.630325,9.498e-05,2]
[406743902,1772140238946,-587.630325,9.498e-05,2]
[406743904,1772140238957,-587.630325,9.498e-05,2]
[406743906,1772140238966,-587.630325,9.498e-05,2]
[406743908,1772140238981,-587.630325,9.498e-05,2]
[406743910,1772140238990,-587.630325,9.498e-05,2]
[406743912,1772140239000,-587.630325,9.498e-05,2]
[406743914,1772140239011,-587.630325,9.498e-05,2]
[406743916,1772140239021,-587.630325,9.498e-05,2]
[406743918,1772140239031,-587.630325,9.498e-05,2]
[406743920,1772140239041,-587.630325,9.498e-05,2]
[406743922,1772140239050,-587.630325,9.498e-05,2]
[406743924,1772140239060,-587.630325,9.498e-05,2]
[406743926,1772140239070,-587.630325,9.498e-05,2]
[406743928,1772140239080,-587.630325,9.498e-05,2]
[406743930,1772140239090,-587.630325,9.498e-05,2]
[406743932,1772140239100,-587.630325,9.498e-05,2]
[406743934,1772140239110,-587.630325,9.498e-05,2]
[406743935,1772140239120,-587.630325,9.498e-05,2]
[406743936,1772140239131,-587.630325,9.498e-05,2]
[406743937,1772140239141,-587.630325,9.498e-05,2]
[406743938,1772140239150,-587.630325,9.498e-05,2]
[406743940,1772140239163,-1045.84658292,9.498e-05,2]
[406743942,1772140239177,-1045.84658292,9.498e-05,2]
[406743944,1772140239187,-10410.4426619,9.653e-05,2]
[406743946,1772140239197,-137550.62068451,9.71e-05,2]
[406743948,1772140239206,-274.0,9.76e-05,2]
[406743950,1772140239216,-500.0,9.789e-05,2]
[406743952,1772140239226,-166.66,9.816e-05,2]
[406743954,1772140239236,-193.99,9.944e-05,2]
[406743956,1772140239246,-31110.78105374,9.95e-05,2]
[406743958,1772140239256,-56753.0,0.0001,2]
[406743960,1772140239265,-151.0,0.0001,2]
[406743962,1772140239274,-151.0,0.0001,2]
[406743964,1772140239286,-151.0,0.0001,2]
[406743966,1772140239296,-151.0,0.0001,2]
[406743969,1772140239305,-151.0,0.0001,2]
[406743971,1772140239315,-151.0,0.0001,2]
[406743973,1772140239325,-151.0,0.0001,2]
[406743975,1772140239334,-151.0,0.0001,2]
[406743977,1772140239345,-151.0,0.0001,2]
[406743979,1772140239365,-151.0,0.0001,2]
[406743981,1772140239374,-151.0,0.0001,2]
[406743983,1772140239397,-151.0,0.0001,2]
[406743985,1772140239410,-151.0,0.0001,2]
[406743987,1772140239423,-151.0,0.0001,2]
[406743989,1772140239435,-151.0,0.0001,2]
[406743991,1772140239445,-151.0,0.0001,2]
[406743993,1772140239455,-151.0,0.0001,2]
[406743995,1772140239467,-151.0,0.0001,2]
[406743997,1772140239476,-500.0,0.0001,2]
[406743999,1772140239486,-151.0,0.0001,2]
[406744002,1772140239496,-151.0,0.0001,2]
[406744004,1772140239506,-151.0,0.0001,2]
[406744005,1772140239517,-151.0,0.0001,2]
[406744007,1772140239527,-151.0,0.0001,2]
[406744010,1772140239538,-151.0,0.0001,2]
[406744012,1772140239552,-151.0,0.0001,2]
[406744013,1772140239562,-151.0,0.0001,2]
[406744015,1772140239576,-151.0,0.0001,2]
[406744018,1772140239586,-296.91076628,0.0001,2]
[406744019,1772140239596,-151.0,0.0001,2]
[406744022,1772140239606,-151.0,0.0001,2]
[406744023,1772140239616,-151.0,0.0001,2]
[406744025,1772140239626,-151.0,0.0001,2]
[406744028,1772140239636,-151.0,0.0001,2]
[406744029,1772140239646,-151.0,0.0001,2]
[406744031,1772140239656,-151.0,0.0001,2]
[406744033,1772140239666,-151.0,0.0001,2]
[406744035,1772140239676,-151.0,0.0001,2]
[406744037,1772140239686,-151.0,0.0001,2]
[406744039,1772140239696,-151.0,0.0001,2]
[406744041,1772140239705,-151.0,0.0001,2]
[406744043,1772140239715,-151.0,0.0001,2]
[406744045,1772140239725,-151.0,0.0001,2]
[406744047,1772140239734,-151.0,0.0001,2]
[406744049,1772140239744,-151.0,0.0001,2]
[406744051,1772140239754,-500.0,0.0001,2]
[406744053,1772140239763,-151.0,0.0001,2]
[406744055,1772140239773,-500.0,0.0001,2]
[406744057,1772140239783,-151.0,0.0001,2]
[406744059,1772140239793,-694.94041656,0.0001,2]
[406744061,1772140239802,-500.0,0.0001,2]
[406744063,1772140239812,-151.0,0.0001,2]
[406744065,1772140239822,-500.0,0.0001,2]
[406744067,1772140239833,-500.0,0.0001,2]
[406744069,1772140239844,-500.0,0.0001,2]
[406744071,1772140239855,-500.0,0.0001,2]
[406744073,1772140239865,-502.62170178,0.0001,2]
[406744075,1772140239875,-4000.0,0.00010027,2]
[406744077,1772140239885,-200.0,0.0001011,2]
[406744079,1772140239894,-500.0,0.00010142,2]
[406744081,1772140239905,-226.33001504,0.00010142,2]
[406744083,1772140239915,-668.65185757,0.00010142,2]
[406744085,1772140239926,-267.46074303,0.00010142,2]
[406744087,1772140239936,-500.0,0.00010142,2]
[406744089,1772140239946,-500.0,0.00010142,2]
[406744090,1772140239955,-500.0,0.00010142,2]
[406744110,1772140240263,-500.0,0.00010142,2]
[406744112,1772140240275,-500.0,0.00010142,2]
[406744114,1772140240285,-500.0,0.00010142,2]
[406744116,1772140240295,-500.0,0.00010142,2]
[406744118,1772140240305,-500.0,0.00010142,2]
[406744120,1772140240314,-500.0,0.00010142,2]
[406744122,1772140240323,-500.0,0.00010142,2]
[406744124,1772140240332,-500.0,0.00010142,2]
[406744126,1772140240341,-500.0,0.00010142,2]
[406744128,1772140240351,-151.0,0.00010142,2]
[406744130,1772140240360,-500.0,0.00010142,2]
[406744132,1772140240369,-373.19905658,0.00010142,2]
[406744133,1772140240378,-500.0,0.00010142,2]
[406744135,1772140240391,-500.0,0.00010142,2]
[406744137,1772140240401,-500.0,0.00010142,2]
[406744139,1772140240410,-500.0,0.00010142,2]
[406744141,1772140240424,-256.04349925,0.00010142,2]
[406744143,1772140240435,-500.0,0.00010142,2]
[406744145,1772140240445,-500.0,0.00010142,2]
[406744147,1772140240456,-254.61255286,0.00010142,2]
[406744149,1772140240465,-228.86732875,0.00010142,2]
[406744151,1772140240474,-257.59459412,0.00010142,2]
[406744153,1772140240484,-259.26526386,0.00010142,2]
[406744155,1772140240493,-203.40647395,0.00010142,2]
[406744157,1772140240502,-693.3919763,0.00010197,2]
[406744159,1772140240511,-166.66,0.00010221,2]
[406744161,1772140240520,-1326.69685,0.0001023,2]
[406744163,1772140240530,-1326.69684,0.0001023,2]
[406744165,1772140240539,-10410.4426617,0.00010232,2]
[406744167,1772140240548,-719.04747942,0.00010252,2]
[406744169,1772140240558,-4000.0,0.00010278,2]
[406744171,1772140240567,-151.0,0.0001028,2]
[406744173,1772140240577,-745.65223616,0.00010307,2]
[406744175,1772140240587,-200.0,0.00010332,2]
[406744177,1772140240596,-1326.69684,0.00010332,2]
[406744179,1772140240606,-1326.69684,0.00010332,2]
[406744181,1772140240615,-1326.69684,0.00010332,2]
[406744184,1772140240628,-1326.69684,0.00010332,2]
[406744186,1772140240637,-151.0,0.00010351,2]
[406744188,1772140240646,-773.2413689,0.00010362,2]
[406744189,1772140240656,-150.0,0.00010395,2]
[406744191,1772140240667,-150.0,0.00010395,2]
[406744194,1772140240678,-190.81952823,0.00010395,2]
[406744196,1772140240688,-150.0,0.00010395,2]
[406744198,1772140240697,-150.0,0.00010395,2]
[406744200,1772140240706,-150.0,0.00010395,2]
[406744202,1772140240716,-150.0,0.00010395,2]
[406744204,1772140240725,-162.43895648,0.00010395,2]
[406744206,1772140240734,-150.0,0.00010395,2]
[406744208,1772140240744,-150.0,0.00010395,2]
[406744210,1772140240754,-150.0,0.00010395,2]
[406744211,1772140240764,-150.0,0.00010395,2]
[406744214,1772140240774,-801.85129955,0.00010417,2]
[406744215,1772140240784,-150.0,0.0001045,2]
[406744217,1772140240793,-193.99,0.00010468,2]
[406744219,1772140240802,-150.0,0.00010505,2]
[406744221,1772140240812,-4000.0,0.00010529,2]
[406744223,1772140240821,-166.66,0.00010626,2]
[406744225,1772140240831,-1000.0,0.00010669,2]
[406744227,1772140240840,-1000.0,0.00010669,2]
[406744229,1772140240850,-1000.0,0.00010669,2]
[406744231,1772140240859,-1000.0,0.00010669,2]
[406744233,1772140240869,-1000.0,0.00010669,2]
[406744235,1772140240879,-948.17245614,0.00010669,2]
[406744237,1772140240889,-309.29654756,0.0001069,2]
[406744239,1772140240898,-151.0,0.0001069,2]
[406744241,1772140240908,-5531.0,0.000107,3]
[406744243,1772140240918,-168.54,0.00010717,2]
[406744245,1772140240929,-10410.4426619,0.00010776,2]
[406744247,1772140240938,-151.0,0.00010776,2]
[406744249,1772140240948,-151.0,0.00010776,2]
[406744251,1772140240959,-151.0,0.00010776,2]
[406744253,1772140240969,-4000.0,0.00010779,2]
[406744255,1772140240979,-500.53906536,0.00010829,2]
[406744257,1772140240989,-500.28462042,0.00010829,2]
[406744259,1772140240999,-501.35484447,0.00010829,2]
[406744261,1772140241009,-500.0,0.00010829,2]
[406744264,1772140241023,-500.0,0.00010829,2]
[406744266,1772140241033,-158.6599059,0.00010829,2]
[406744268,1772140241042,-166.95093045,0.00010829,2]
[406744270,1772140241052,-503.76454866,0.00010829,2]
[406744272,1772140241061,-500.0,0.00010829,2]
[406744273,1772140241071,-500.0,0.00010829,2]
[406744275,1772140241080,-500.72325527,0.00010829,2]
[406744276,1772140241089,-500.0,0.00010829,2]
[406744278,1772140241098,-6385.47593771,0.000109,2]
[406744279,1772140241108,-6385.47593765,0.000109,2]
[406744281,1772140241122,-1900.0,0.000109,3]
[406744283,1772140241142,-15447.06,0.00010959,2]
[406744284,1772140241160,-166.66,0.00010959,2]
[406744286,1772140241177,-150.0,0.00010959,2]
[406744287,1772140241190,-150.0,0.00010959,2]
[406744289,1772140241200,-151.0,0.00010959,2]
[406744291,1772140241216,-153.208343,0.00010959,2]
[406744292,1772140241233,-271.472129,0.00010959,2]
[406744294,1772140241243,-271.472129,0.00010959,2]
[406744296,1772140241253,-271.472129,0.00010959,2]
[406744297,1772140241263,-271.472129,0.00010959,2]
[406744299,1772140241272,-151.0,0.00010959,2]
[406744300,1772140241282,-151.0,0.00010959,2]
[406744302,1772140241292,-151.0,0.00010959,2]
[406744303,1772140241305,-151.0,0.00010959,2]
[406744305,1772140241314,-151.0,0.00010959,2]
[406744306,1772140241324,-151.0,0.00010959,2]
[406744308,1772140241333,-193.99,0.00010991,2]
[406744310,1772140241343,-4000.0,0.0001103,2]
[406744311,1772140241352,-166.66,0.00011031,2]
[406744313,1772140241361,-166.66,0.00011068,2]
[406744314,1772140241371,-352.46850117,0.00011089,2]
[406744316,1772140241381,-22598.43819853,0.00011099,2]
[406744318,1772140241396,-22598.43819848,0.00011099,2]
[406744319,1772140241407,-22598.43819848,0.00011099,2]
[406744321,1772140241417,-22598.43819848,0.00011099,2]
[406744322,1772140241427,-151.0,0.00011099,2]
[406744324,1772140241437,-151.0,0.00011099,2]
[406744326,1772140241447,-868.945909,0.00011172,2]
[406744327,1772140241457,-166.66,0.00011178,2]
[406744329,1772140241467,-166.66,0.00011183,2]
[406744331,1772140241481,-7246.82,0.00011233,2]
[406744333,1772140241490,-150.0,0.00011233,2]
[406744334,1772140241500,-200.0,0.00011233,2]
[406744336,1772140241510,-1512.31,0.0001125,2]
[406744337,1772140241519,-166.66,0.00011288,2]
[406744338,1772140241529,-1000.0,0.00011311,2]
[406744339,1772140241538,-152.838506,0.0001134,2]
[406744340,1772140241548,-151.026065,0.0001134,2]
[406744341,1772140241557,-151.0,0.0001134,2]
[406744342,1772140241567,-151.0,0.0001134,2]
[406744343,1772140241577,-151.0,0.0001134,2]